bitfinex/quotes_SOLUSD_20220210
["timestamp","ask_amount","ask_price","bid_price","bid_amount"]
[1644516192712,25.43422425,111.68,111.56,6.0]
[1644516193110,25.43422425,111.68,111.54,13.4467]
[1644516193310,25.43422425,111.68,111.53,28.2403]
[1644516193311,13.4484,111.64,111.53,28.2403]
[1644516193509,37.93550773,111.63,111.53,28.2403]
[1644516194511,37.93550773,111.63,111.53,4.478]
[1644516194713,13.4505,111.61,111.51,22.9781]
[1644516194912,13.4505,111.61,111.47,4.505]
[1644516194913,13.4505,111.61,111.47,5.78316982]
[1644516195215,13.4505,111.61,111.48,4.482]
[1644516195814,13.4505,111.61,111.48,6.26338439]
[1644516196013,13.4505,111.61,111.48,6.51338439]
[1644516196213,13.4505,111.61,111.48,12.51338439]
[1644516196415,13.4505,111.61,111.48,6.51338439]
[1644516196617,13.4505,111.61,111.48,8.03138439]
[1644516196814,13.4505,111.61,111.48,19.704]
[1644516197013,51.38350773,111.63,111.49,1.78138439]
[1644516197215,51.38350773,111.63,111.5,4.481]
[1644516197615,51.38350773,111.63,111.51,1.78138439]
[1644516197815,51.38350773,111.63,111.5,0.25]
[1644516198016,51.38350773,111.63,111.51,13.4507]
[1644516200019,52.63697374,111.63,111.51,13.4507]
[1644516200519,51.38350773,111.63,111.51,13.4507]
[1644516200722,51.38350773,111.63,111.48,4.481]
[1644516200918,13.4583,111.58,111.47,0.024]
[1644516201121,13.4583,111.58,111.42,58.4701]
[1644516201122,57.88385416,111.57,111.45,0.024]
[1644516201320,60.1150757,111.57,111.45,0.024]
[1644516201525,2.23122154,111.56,111.45,0.024]
[1644516201723,12.94122154,111.56,111.42,0.024]
[1644516202121,12.94122154,111.56,111.43,4.484]
[1644516202122,13.4618,111.54,111.43,4.484]
[1644516202320,38.15184598,111.53,111.44,0.024]
[1644516202520,38.15184598,111.53,111.42,4.508]
[1644516202722,38.15184598,111.53,111.42,0.024]
[1644516202947,38.15184598,111.53,111.42,6.25]
[1644516203246,38.15184598,111.53,111.42,6.274]
[1644516203447,38.15184598,111.53,111.42,5.774]
[1644516203647,38.15184598,111.53,111.42,0.274]
[1644516203850,51.61154598,111.53,111.44,13.4588]
[1644516204049,44.8593,111.57,111.44,13.4588]
[1644516204250,2.23122154,111.57,111.45,4.507]
[1644516204449,11.96346601,111.62,111.45,0.024]
[1644516204649,2.23122154,111.59,111.46,0.024]
[1644516204948,47.36762094,111.58,111.44,0.024]
[1644516205150,13.4552,111.57,111.44,0.024]
[1644516205350,24.1652,111.57,111.45,0.024]
[1644516205649,13.4552,111.57,111.46,4.483]
[1644516205850,13.4552,111.57,111.45,10.71]
[1644516206049,13.4552,111.57,111.46,4.483]
[1644516206248,13.4552,111.57,111.45,10.734]
[1644516206449,13.4552,111.57,111.47,13.4554]
[1644516207049,36.65762094,111.58,111.47,13.7054]
[1644516207251,36.65762094,111.58,111.48,4.483]
[1644516207449,36.65762094,111.58,111.5,13.4519]
[1644516208455,36.65762094,111.58,111.47,55.5736]
[1644516208651,50.11062094,111.58,111.48,13.4544]
[1644516209953,50.11062094,111.58,111.47,0.024]
[1644516210154,50.11062094,111.58,111.45,0.024]
[1644516210452,2.23122154,111.57,111.46,0.024]
[1644516210653,13.4621,111.54,111.46,0.024]
[1644516210854,34.87582708,111.53,111.44,46.9125]
[1644516212854,13.4618,111.51,111.44,46.9125]
[1644516213153,13.4618,111.51,111.43,23.8649]
[1644516213755,13.4618,111.51,111.41,0.024]
[1644516215760,13.4618,111.51,111.41,13.4876]
[1644516220469,13.4618,111.51,111.41,0.024]
[1644516220669,13.4618,111.51,111.39,47.8957]
[1644516220870,24.1718,111.51,111.4,0.024]
[1644516221068,24.1718,111.51,111.39,47.8957]
[1644516221701,24.1718,111.51,111.39,61.3621]
[1644516222202,13.4618,111.51,111.39,61.3621]
[1644516225207,13.4618,111.51,111.39,13.4904]
[1644516225405,24.1718,111.51,111.39,13.4904]
[1644516225604,24.1718,111.51,111.39,0.024]
[1644516225806,24.1718,111.51,111.38,19.4917]
[1644516227113,26.40302154,111.51,111.38,19.4917]
[1644516227308,26.40302154,111.51,111.38,0.024]
[1644516227509,124.53529764,111.51,111.38,0.024]
[1644516227707,139.37700983,111.51,111.38,0.024]
[1644516227908,155.26333459,111.51,111.38,0.024]
[1644516228508,168.13243459,111.51,111.35,1.27816982]
[1644516228809,13.4731,111.46,111.36,0.024]
[1644516229008,43.51545016,111.45,111.34,1.27816982]
[1644516229208,43.51545016,111.45,111.34,1.30216982]
[1644516229908,145.4705,111.44,111.31,7.03689188]
[1644516230212,145.4705,111.44,111.27,2.55089188]
[1644516230213,42.91760935,111.42,111.27,2.55089188]
[1644516230413,42.91760935,111.42,111.27,14.51905644]
[1644516230614,42.91760935,111.42,111.28,88.63]
[1644516230814,42.91760935,111.42,111.28,150.18245644]
[1644516231019,42.91760935,111.42,111.28,160.89245644]
[1644516231415,42.91760935,111.42,111.28,152.3734]
[1644516231914,42.91760935,111.42,111.29,13.4773]
[1644516231915,56.38960935,111.42,111.29,13.4773]
[1644516232114,56.38960935,111.42,111.3,4.49]
[1644516232312,56.38960935,111.42,111.3,6.25]
[1644516232512,56.38960935,111.42,111.31,4.489]
[1644516232715,56.38960935,111.42,111.3,6.0]
[1644516232912,56.38960935,111.42,111.29,4.489]
[1644516233212,56.38960935,111.42,111.29,10.489]
[1644516233413,56.38960935,111.42,111.29,21.199]
[1644516233812,56.38960935,111.42,111.33,13.4731]
[1644516234013,58.62083089,111.42,111.33,13.4731]
[1644516234415,56.38960935,111.42,111.33,13.4731]
[1644516235014,42.91760935,111.42,111.33,13.4731]
[1644516237317,13.4718,111.44,111.33,13.4731]
[1644516237518,24.9941,111.47,111.33,13.4731]
[1644516237722,24.9941,111.47,111.37,13.4676]
[1644516237918,2.23122154,111.5,111.37,13.4676]
[1644516238120,13.2182412,111.56,111.37,24.4276]
[1644516238320,45.61058927,111.55,111.38,55.86229744]
[1644516238618,13.4614,111.53,111.39,12.48689744]
[1644516238819,45.37258101,111.52,111.39,12.48689744]
[1644516239021,45.37258101,111.52,111.39,10.71]
[1644516239420,47.60380255,111.52,111.39,10.71]
[1644516239821,13.4664,111.49,111.39,10.71]
[1644516240018,38.40208333,111.48,111.39,10.71]
[1644516240724,38.40208333,111.48,111.39,24.1758]
[1644516241826,13.4638,111.51,111.39,24.1758]
[1644516242024,33.972,111.56,111.44,13.4596]
[1644516242224,23.262,111.56,111.44,13.4596]
[1644516242829,47.27955697,111.54,111.44,13.4596]
[1644516243027,60.73945697,111.54,111.42,13.4615]
[1644516243526,60.73945697,111.54,111.39,10.485]
[1644516243728,94.4615896,111.54,111.39,4.485]
[1644516244131,79.6637255,111.54,111.39,4.485]
[1644516244327,79.6637255,111.54,111.4,24.2002]
[1644516244527,60.73945697,111.54,111.4,37.6638]
[1644516244727,60.73945697,111.54,111.41,10.71]
[1644516245130,60.73945697,111.54,111.41,10.96]
[1644516245332,60.73945697,111.54,111.42,0.024]
[1644516245729,60.73945697,111.54,111.44,13.4588]
[1644516245929,60.73945697,111.54,111.43,0.024]
[1644516246130,60.73945697,111.54,111.42,48.8652]
[1644516246131,10.71,111.53,111.42,0.024]
[1644516246331,13.4649,111.5,111.42,0.024]
[1644516246530,40.29394629,111.49,111.42,0.024]
[1644516246730,40.29394629,111.49,111.39,4.485]
[1644516247131,40.29394629,111.49,111.39,0.25]
[1644516247333,40.29394629,111.49,111.38,99.116]
[1644516247535,53.75794629,111.49,111.38,10.736]
[1644516247733,40.29394629,111.49,111.38,10.736]
[1644516247951,23.3991,111.53,111.39,15.25386743]
[1644516248150,44.8701,111.54,111.4,4.485]
[1644516248349,44.8701,111.54,111.4,23.887]
[1644516248649,13.4611,111.52,111.4,0.024]
[1644516249049,45.00452696,111.51,111.4,0.024]
[1644516249250,42.77330542,111.51,111.39,0.024]
[1644516249550,42.77330542,111.51,111.4,0.024]
[1644516249753,42.77330542,111.51,111.38,38.0074]
[1644516250854,40.18710697,111.47,111.38,38.2574]
[1644516251051,40.18710697,111.47,111.39,0.024]
[1644516251252,40.18710697,111.47,111.4,13.4641]
[1644516251650,40.18710697,111.47,111.38,29.0031]
[1644516251851,53.65330697,111.47,111.38,24.5171]
[1644516252851,53.65330697,111.47,111.38,37.9833]
[1644516253253,53.65330697,111.47,111.38,13.4662]
[1644516254051,53.65330697,111.47,111.37,13.4925]
[1644516254252,53.65330697,111.47,111.36,28.7397]
[1644516255057,64.36330697,111.47,111.35,4.511]
[1644516255757,64.36330697,111.47,111.35,17.9809]
[1644516256156,64.36330697,111.47,111.35,13.4939]
[1644516257160,64.36330697,111.47,111.35,17.9809]
[1644516257359,64.36330697,111.47,111.35,4.511]
[1644516257558,13.4735,111.43,111.35,4.511]
[1644516257759,34.61226722,111.42,111.35,4.487]
[1644516257961,44.9115,111.44,111.35,4.487]
[1644516258160,10.71,111.45,111.35,4.487]
[1644516258363,10.71,111.47,111.34,46.7612]
[1644516258562,57.8137,111.51,111.35,13.4951]
[1644516258860,13.4631,111.5,111.36,27.5988]
[1644516259069,2.5082412,111.55,111.37,10.734]
[1644516259262,13.2182412,111.56,111.38,136.682]
[1644516259461,13.2182412,111.56,111.39,10.734]
[1644516259462,10.71,111.56,111.39,10.734]
[1644516259662,13.4583,111.54,111.4,102.1167]
[1644516259864,2.5082412,111.58,111.42,0.31124029]
[1644516260066,38.29227968,111.57,111.43,10.734]
[1644516260263,38.29227968,111.57,111.43,25.65446284]
[1644516260464,38.29227968,111.57,111.44,1.78816743]
[1644516260663,38.29227968,111.57,111.45,10.71]
[1644516260865,38.29227968,111.57,111.46,13.4539]
[1644516261066,38.29227968,111.57,111.46,24.1639]
[1644516261263,38.29227968,111.57,111.46,30.4139]
[1644516261662,38.29227968,111.57,111.46,24.1639]
[1644516262662,38.29227968,111.57,111.44,23.2495]
[1644516262663,53.97770122,111.57,111.44,23.2495]
[1644516263865,64.68770122,111.57,111.43,13.4845]
[1644516264066,128.19662598,111.57,111.43,0.024]
[1644516264466,130.70486718,111.57,111.43,0.024]
[1644516264868,128.19662598,111.57,111.43,0.024]
[1644516265067,130.70486718,111.57,111.43,0.024]
[1644516265467,5.00391847,111.56,111.43,0.024]
[1644516265666,13.4663,111.53,111.4,0.024]
[1644516265867,54.66994558,111.52,111.4,0.024]
[1644516266070,56.90116712,111.52,111.4,0.024]
[1644516266267,56.90116712,111.52,111.35,15.195]
[1644516266268,47.6911,111.51,111.37,0.024]
[1644516266467,52.76459249,111.5,111.4,0.024]
[1644516266667,13.4672,111.49,111.36,24.497]
[1644516266867,38.41202151,111.48,111.37,0.024]
[1644516267068,38.41202151,111.48,111.37,4.487]
[1644516267268,38.41202151,111.48,111.38,13.4676]
[1644516268870,41.44801889,111.46,111.38,13.4676]
[1644516269674,41.44801889,111.46,111.36,37.9661]
[1644516269873,54.91571889,111.46,111.36,24.497]
[1644516270577,57.14694043,111.46,111.36,0.024]
[1644516271777,54.91571889,111.46,111.36,0.024]
[1644516271976,13.4677,111.46,111.34,47.7812]
[1644516272179,13.4662,111.48,111.36,1.78816743]
[1644516272379,13.4662,111.48,111.37,4.487]
[1644516272678,13.4662,111.48,111.38,13.4669]
[1644516273178,44.66123266,111.47,111.37,0.024]
[1644516273378,44.66123266,111.47,111.36,4.511]
[1644516273578,44.66123266,111.47,111.36,0.024]
[1644516274183,13.4682,111.46,111.36,13.4931]
[1644516274384,45.25798356,111.45,111.36,13.4931]
[1644516275786,58.72798356,111.45,111.36,13.4931]
[1644516276786,58.72798356,111.45,111.36,0.024]
[1644516276987,69.43798356,111.45,111.35,4.487]
[1644516277189,71.6692051,111.45,111.35,4.487]
[1644516277392,77.87623439,111.45,111.35,4.487]
[1644516277588,77.87623439,111.45,111.34,0.024]
[1644516277589,86.99002986,111.45,111.34,0.024]
[1644516277787,46.9109,111.44,111.28,4.488]
[1644516277989,13.4774,111.4,111.29,13.4781]
[1644516278186,37.2849973,111.39,111.29,13.5021]
[1644516278386,37.2849973,111.39,111.29,13.4781]
[1644516278989,50.7629973,111.39,111.29,13.4781]
[1644516279388,10.71,111.41,111.29,13.4781]
[1644516279588,24.9477,111.46,111.29,15.54026743]
[1644516279790,35.6577,111.46,111.34,13.4705]
[1644516279990,35.6577,111.46,111.34,13.4945]
[1644516280390,37.62381033,111.45,111.34,13.4945]
[1644516280590,37.62381033,111.45,111.34,13.7445]
[1644516280789,37.62381033,111.45,111.35,16.98616743]
[1644516280990,37.62381033,111.45,111.34,10.734]
[1644516281494,37.62381033,111.45,111.34,0.024]
[1644516281691,37.62381033,111.45,111.33,46.2345]
[1644516281890,51.09511033,111.45,111.33,46.2345]
[1644516282290,51.09511033,111.45,111.34,13.4709]
[1644516282490,64.03633187,111.45,111.34,13.4949]
[1644516282989,61.80511033,111.45,111.34,13.4949]
[1644516283491,64.03633187,111.45,111.34,13.4949]
[1644516284591,2.23122154,111.47,111.34,25.99306743]
[1644516284793,24.7412,111.51,111.35,88.654]
[1644516284996,24.7412,111.51,111.38,13.463]
[1644516285192,24.7412,111.51,111.38,24.197]
[1644516285592,46.4256411,111.5,111.38,24.197]
[1644516285791,2.23122154,111.5,111.38,47.5795]
[1644516286092,2.5082412,111.56,111.38,50.06766743]
[1644516286292,45.5626,111.58,111.44,13.456]
[1644516286492,56.2726,111.58,111.45,51.6008]
[1644516286693,56.2726,111.58,111.45,47.1178]
[1644516286892,54.46589898,111.57,111.45,47.1178]
[1644516287293,10.71,111.56,111.44,4.483]
[1644516287494,34.4946061,111.55,111.42,13.4617]
[1644516287693,10.71,111.54,111.42,13.4617]
[1644516287892,37.90953768,111.53,111.42,13.4617]
[1644516288696,13.4618,111.52,111.42,13.4617]
[1644516288992,46.87090636,111.51,111.42,13.4617]
[1644516289994,47.9591,111.54,111.42,13.7117]
[1644516290195,111.9,111.56,111.42,30.4217]
[1644516290499,111.9,111.56,111.42,31.96542862]
[1644516290698,111.9,111.56,111.42,24.1717]
[1644516290894,126.97356526,111.56,111.42,24.1717]
[1644516291094,45.27044884,111.55,111.42,24.1717]
[1644516291298,13.4606,111.53,111.42,24.1717]
[1644516291497,45.9196334,111.52,111.42,13.4617]
[1644516291900,39.30602476,111.58,111.42,13.4617]
[1644516292102,63.18892476,111.58,111.42,54.4108]
[1644516292302,47.8681,111.58,111.42,56.20452862]
[1644516292502,152.51330646,111.6,111.42,56.52359573]
[1644516292703,114.4082412,111.6,111.48,13.4504]
[1644516292909,48.73342289,111.59,111.49,4.482]
[1644516293302,48.73342289,111.59,111.49,10.732]
[1644516293502,48.73342289,111.59,111.49,6.25]
[1644516293703,48.73342289,111.59,111.5,13.4515]
[1644516293904,48.73342289,111.59,111.45,37.7451]
[1644516294109,48.73342289,111.59,111.46,23.6729]
[1644516295308,48.73342289,111.59,111.48,13.4539]
[1644516295708,48.73342289,111.59,111.49,4.482]
[1644516295907,48.73342289,111.59,111.49,15.192]
[1644516296109,0.02695824,111.63,111.49,21.442]
[1644516296309,0.02695824,111.63,111.52,13.4485]
[1644516296508,178.06136596,111.65,111.52,65.1701]
[1644516296509,0.02695824,111.64,111.52,65.1701]
[1644516296726,0.02695824,111.63,111.53,10.71]
[1644516296930,0.02695824,111.64,111.53,10.71]
[1644516297129,46.15503946,111.64,111.54,4.48]
[1644516297327,46.15503946,111.64,111.54,10.48]
[1644516297526,46.15503946,111.64,111.55,13.4448]
[1644516298328,46.15503946,111.64,111.53,10.71]
[1644516298528,89.99762948,111.64,111.53,13.4473]
[1644516298733,89.99762948,111.64,111.49,15.19]
[1644516298928,63.734044,111.64,111.49,59.8324]
[1644516299130,0.02695824,111.63,111.49,66.0824]
[1644516299330,0.02695824,111.63,111.5,4.481]
[1644516299532,0.02695824,111.63,111.51,34.9455]
[1644516299730,46.1819977,111.64,111.51,40.9455]
[1644516299931,46.1819977,111.64,111.53,13.4445]
[1644516300134,63.45982626,111.64,111.51,34.9455]
[1644516300338,63.45982626,111.64,111.5,4.481]
[1644516300339,86.25439469,111.64,111.5,4.481]
[1644516300536,0.02695824,111.63,111.5,4.481]
[1644516300737,47.36831774,111.62,111.5,4.481]
[1644516300939,62.36966078,111.62,111.5,4.481]
[1644516301537,42.55038844,111.59,111.5,4.481]
[1644516301737,0.02695824,111.61,111.49,24.8869]
[1644516301938,0.02695824,111.62,111.5,15.192]
[1644516302143,0.02695824,111.61,111.51,22.9846]
[1644516302339,15.00134304,111.64,111.52,4.481]
[1644516302340,0.02695824,111.62,111.52,4.481]
[1644516302540,15.02830128,111.64,111.52,4.481]
[1644516302740,15.02830128,111.64,111.52,6.25]
[1644516302942,0.02695824,111.64,111.53,13.4474]
[1644516303141,0.02695824,111.66,111.54,62.9014]
[1644516303340,82.4271412,111.71,111.55,10.71]
[1644516303540,0.02651281,111.66,111.56,27.3521]
[1644516303839,44.05324412,111.7,111.56,33.5831]
[1644516304039,44.07975458,111.7,111.56,33.5831]
[1644516304240,13.46911046,111.69,111.57,13.4409]
[1644516304440,37.39693406,111.68,111.57,13.4409]
[1644516305341,50.84063406,111.68,111.56,33.5831]
[1644516305545,50.84063406,111.68,111.56,22.8731]
[1644516305742,65.8419771,111.68,111.54,24.8383]
[1644516305945,0.02651046,111.67,111.54,24.8383]
[1644516306144,10.73651046,111.67,111.54,24.8383]
[1644516306343,51.24490389,111.66,111.54,24.8383]
[1644516306543,51.27141435,111.66,111.54,24.8383]
[1644516306743,10.71,111.65,111.54,24.8383]
[1644516306942,36.03211398,111.63,111.52,23.0759]
[1644516307146,36.03211398,111.63,111.5,40.0988]
[1644516307147,10.71,111.62,111.5,4.48]
[1644516307345,39.02143372,111.61,111.46,71.485]
[1644516307544,44.51325713,111.59,111.46,47.267]
[1644516308349,44.51325713,111.59,111.46,53.267]
[1644516308546,44.51325713,111.59,111.46,53.517]
[1644516308848,44.51325713,111.59,111.47,17.9373]
[1644516309048,44.51325713,111.59,111.48,10.71]
[1644516309246,44.51325713,111.59,111.49,4.482]
[1644516309447,44.51325713,111.59,111.48,16.96]
[1644516309648,44.51325713,111.59,111.49,6.27609162]
[1644516309849,44.51325713,111.59,111.49,12.52609162]
[1644516310049,44.51325713,111.59,111.49,4.482]
[1644516310750,0.02651046,111.62,111.49,10.732]
[1644516310954,0.02651046,111.6,111.5,60.27369162]
[1644516311154,0.02651046,111.62,111.53,13.4458]
[1644516311354,44.8246,111.67,111.53,13.4458]
[1644516311355,0.02651046,111.66,111.53,13.4458]
[1644516311553,0.02651046,111.64,111.53,13.4458]
[1644516311752,41.2875027,111.66,111.53,13.4458]
[1644516312754,13.4479,111.64,111.53,13.4458]
[1644516312954,36.29677488,111.63,111.53,13.4458]
[1644516315375,36.29677488,111.63,111.53,13.6958]
[1644516316074,0.02651046,111.64,111.53,30.4058]
[1644516316276,111.92651046,111.65,111.53,54.877]
[1644516316476,0.02651046,111.65,111.53,54.877]
[1644516317077,36.5403483,111.65,111.53,54.877]
[1644516317278,49.9864483,111.65,111.53,48.877]
[1644516317580,0.02651046,111.65,111.53,137.507]
[1644516317780,0.02651046,111.65,111.57,13.4409]
[1644516317976,2.5082412,111.67,111.58,15.189]
[1644516318177,0.02651046,111.67,111.58,15.189]
[1644516318378,2.5082412,111.71,111.58,21.439]
[1644516318379,0.02651046,111.69,111.58,21.439]
[1644516318578,0.02651046,111.7,111.59,88.63]
[1644516318778,0.02651046,111.69,111.6,15.188]
[1644516318975,0.02651046,111.71,111.6,28.6273]
[1644516319177,38.88652348,111.72,111.6,36.67139162]
[1644516319376,15.00134304,111.77,111.61,132.0]
[1644516319578,6.19562456,111.89,111.78,101.63]
[1644516319880,3.157165,111.94,111.87,4.67074885]
[1644516320178,0.02668075,111.92,111.88,10.71]
[1644516320383,44.69298164,111.93,111.88,16.96]
[1644516320578,3.157165,111.94,111.88,27.423]
[1644516320778,3.157165,111.94,111.88,21.423]
[1644516320981,132.0,111.93,111.87,0.00074885]
[1644516321479,44.8512219,111.92,111.77,134.71125]
[1644516321679,44.8512219,111.92,111.78,10.71]
[1644516321881,111.92668075,111.91,111.78,10.71]
[1644516322184,39.0324642,111.9,111.78,10.71]
[1644516322784,39.0324642,111.9,111.79,4.47]
[1644516322991,39.0324642,111.9,111.8,10.71]
[1644516323194,0.02668075,111.89,111.8,10.71]
[1644516323393,39.0324642,111.9,111.8,10.71]
[1644516325198,39.0324642,111.9,111.76,10.71]
[1644516325398,43.31537867,111.88,111.76,10.71]
[1644516325799,43.34205942,111.88,111.76,10.71]
[1644516326711,135.035,111.87,111.74,10.71]
[1644516326902,54.61701096,111.86,111.68,10.71]
[1644516327101,36.0692062,111.83,111.68,10.71]
[1644516327301,36.0692062,111.83,111.65,73.1452]
[1644516327302,13.84568075,111.82,111.65,77.6192]
[1644516327504,13.84568075,111.82,111.65,24.4739]
[1644516327505,38.20414669,111.81,111.65,24.4739]
[1644516327701,48.04259921,111.79,111.61,10.71]
[1644516327901,34.53390127,111.77,111.61,10.71]
[1644516328101,3.221,111.76,111.61,10.71]
[1644516328302,40.26337387,111.75,111.61,10.71]
[1644516328502,40.29005462,111.75,111.62,4.477]
[1644516328903,40.29005462,111.75,111.63,10.71]
[1644516329703,40.29005462,111.75,111.63,10.96]
[1644516331005,42.52127616,111.75,111.63,10.96]
[1644516331207,40.29005462,111.75,111.63,10.96]
[1644516332504,40.29005462,111.75,111.63,16.96]
[1644516332708,40.29005462,111.75,111.63,10.96]
[1644516332904,40.29005462,111.75,111.63,10.71]
[1644516333105,2.23122154,111.74,111.63,10.71]
[1644516333307,43.35158421,111.73,111.63,10.71]
[1644516333707,6.70722154,111.74,111.63,10.71]
[1644516333708,47.5626879,111.71,111.63,10.71]
[1644516334131,47.5626879,111.71,111.59,10.71]
[1644516334308,47.58936865,111.71,111.6,4.478]
[1644516334509,47.5626879,111.71,111.6,4.478]
[1644516334709,47.5626879,111.71,111.6,10.478]
[1644516335311,47.5626879,111.71,111.6,4.478]
[1644516335710,47.5626879,111.71,111.6,4.728]
[1644516335908,49.79390944,111.71,111.6,4.728]
[1644516336311,47.5626879,111.71,111.6,4.728]
[1644516336612,47.5626879,111.71,111.61,10.71]
[1644516336808,47.5626879,111.71,111.62,4.477]
[1644516337011,47.5626879,111.71,111.62,10.71]
[1644516337410,47.5626879,111.71,111.62,16.71]
[1644516337611,47.5626879,111.71,111.59,10.71]
[1644516337812,47.58936865,111.71,111.59,10.96]
[1644516338210,47.58936865,111.71,111.6,1.79409162]
[1644516338410,47.5626879,111.71,111.61,15.188]
[1644516338610,47.5626879,111.71,111.61,10.71]
[1644516338810,47.5626879,111.71,111.62,6.27109162]
[1644516339011,47.5626879,111.71,111.63,10.71]
[1644516339710,47.5626879,111.71,111.61,0.25]
[1644516339911,47.5626879,111.71,111.6,10.71]
[1644516340313,49.79390944,111.71,111.6,10.71]
[1644516341118,47.5626879,111.71,111.6,10.71]
[1644516341316,47.5626879,111.71,111.6,10.96]
[1644516341517,49.79390944,111.71,111.6,10.71]
[1644516341913,49.79390944,111.71,111.58,4.477]
[1644516341914,47.34515683,111.69,111.58,4.477]
[1644516342114,47.37183758,111.69,111.57,35.1404]
[1644516342315,2.23122154,111.68,111.57,35.1404]
[1644516342515,41.80836856,111.67,111.57,35.1404]
[1644516342714,41.80836856,111.67,111.57,10.71]
[1644516343316,44.0395901,111.67,111.57,10.71]
[1644516343517,44.0395901,111.67,111.52,4.479]
[1644516343518,35.23830941,111.65,111.52,4.479]
[1644516343716,35.23830941,111.65,111.51,33.9005]
[1644516343717,4.48,111.64,111.51,33.9005]
[1644516343916,2.23122154,111.64,111.51,10.71]
[1644516344117,42.02676596,111.63,111.51,10.71]
[1644516344516,39.79554442,111.63,111.51,10.71]
[1644516344717,39.79554442,111.63,111.52,4.481]
[1644516345216,39.79554442,111.63,111.51,10.71]
[1644516345431,39.79554442,111.63,111.52,0.25]
[1644516345626,39.79554442,111.63,111.51,10.96]
[1644516346427,4.50768075,111.67,111.51,16.96]
[1644516346628,0.02668075,111.68,111.51,16.96]
[1644516346830,4.50668075,111.68,111.52,0.45]
[1644516347028,0.02668075,111.7,111.53,10.71]
[1644516347328,4.50568075,111.69,111.53,16.96]
[1644516347528,37.38340113,111.68,111.53,16.71]
[1644516347728,4.50668075,111.67,111.53,16.96]
[1644516347931,0.02668075,111.67,111.53,16.96]
[1644516348429,2.23122154,111.66,111.53,16.96]
[1644516348628,36.10027108,111.64,111.53,10.71]
[1644516349238,36.10027108,111.64,111.53,10.96]
[1644516349839,36.10027108,111.64,111.53,10.71]
[1644516350239,36.10027108,111.64,111.53,10.96]
[1644516354545,36.10027108,111.64,111.53,15.44]
[1644516355346,36.10027108,111.64,111.53,15.19]
[1644516355549,36.10027108,111.64,111.53,4.48]
[1644516355747,2.23122154,111.63,111.49,48.5035916]
[1644516356048,2.23122154,111.63,111.49,47.243]
[1644516356049,45.54228724,111.61,111.49,47.243]
[1644516356247,45.54228724,111.61,111.49,53.243]
[1644516356448,45.54228724,111.61,111.49,47.243]
[1644516356647,47.77350878,111.61,111.47,11.9705916]
[1644516356851,46.47908296,111.59,111.47,11.9705916]
[1644516357046,46.47908296,111.59,111.47,10.71]
[1644516357848,46.47908296,111.59,111.47,16.96]
[1644516358448,46.47908296,111.59,111.47,10.71]
[1644516358849,37.49966783,111.57,111.47,10.71]
[1644516359050,37.49966783,111.57,111.45,1.2605916]
[1644516359253,37.49966783,111.57,111.44,32.65458897]
[1644516359451,37.49966783,111.57,111.44,16.4535916]
[1644516359653,37.49966783,111.57,111.44,11.9705916]
[1644516359850,37.49966783,111.57,111.44,22.7045916]
[1644516360051,37.49966783,111.57,111.45,1.2605916]
[1644516360251,37.49966783,111.57,111.45,1.5105916]
[1644516360855,37.49966783,111.57,111.45,7.5105916]
[1644516361253,37.49966783,111.57,111.46,4.483]
[1644516361654,37.49966783,111.57,111.46,4.733]
[1644516361856,37.49966783,111.57,111.46,20.93175848]
[1644516362054,37.49966783,111.57,111.46,38.90235008]
[1644516362252,37.49966783,111.57,111.47,3.05468322]
[1644516362454,37.49966783,111.57,111.48,1.2605916]
[1644516362656,37.49966783,111.57,111.48,17.45935008]
[1644516362853,37.49966783,111.57,111.48,17.70935008]
[1644516363054,23.659,111.61,111.49,10.71]